[Event "Titled Tuesday Blitz March 08 Late 2022"]
[White "Indjic, Aleksandar"]
[Black "Dubov, Daniil"]
[WhiteFideId "911925"]
[BlackFideId "24126055"]
[WhiteElo "2616"]
[BlackElo "2791"]
[Result "0-1"]
[Round "10"]
[TimeControl "180+1"]
[Date "2022.03.08"]
[WhiteClock "0:00:09"]
[BlackClock "0:00:09"]

1. d4 {[%clk 0:03:00]}  d5 {[%clk 0:02:58]} 2. c4 {[%clk 0:03:00]}  c6 {[%clk 0:02:57]} 3. cxd5 {[%clk 0:03:00]}  cxd5 {[%clk 0:02:58]} 4. Bg5 {[%clk 0:03:00]}  Nf6 {[%clk 0:02:47]} 5. Bxf6 {[%clk 0:02:59]}  gxf6 {[%clk 0:02:48]} 6. Nc3 {[%clk 0:02:58]}  e6 {[%clk 0:02:47]} 7. e3 {[%clk 0:02:58]}  Nc6 {[%clk 0:02:46]} 8. Nge2 {[%clk 0:02:58]}  Bd7 {[%clk 0:02:45]} 9. Ng3 {[%clk 0:02:58]}  f5 {[%clk 0:02:40]} 10. Nh5 {[%clk 0:02:57]}  Rc8 {[%clk 0:02:38]} 11. Be2 {[%clk 0:02:54]}  Bb4 {[%clk 0:02:34]} 12. Rc1 {[%clk 0:02:53]}  Ne7 {[%clk 0:02:29]} 13. Nf6+ {[%clk 0:02:39]}  Kf8 {[%clk 0:02:28]} 14. Qb3 {[%clk 0:02:39]}  Nc6 {[%clk 0:02:21]} 15. Nh5 {[%clk 0:02:35]}  Qb6 {[%clk 0:02:07]} 16. O-O {[%clk 0:02:32]}  Na5 {[%clk 0:02:07]} 17. Qc2 {[%clk 0:02:30]}  Bxc3 {[%clk 0:02:05]} 18. bxc3 {[%clk 0:02:31]}  Ke7 {[%clk 0:02:02]} 19. Qd2 {[%clk 0:02:26]}  h6 {[%clk 0:01:50]} 20. Rb1 {[%clk 0:02:23]}  Qd6 {[%clk 0:01:40]} 21. Rfc1 {[%clk 0:02:21]}  b6 {[%clk 0:01:38]} 22. f3 {[%clk 0:02:18]}  Nc4 {[%clk 0:01:34]} 23. Qe1 {[%clk 0:02:15]}  Nxe3 {[%clk 0:01:18]} 24. Ba6 {[%clk 0:02:07]}  Nc4 {[%clk 0:01:06]} 25. Qh4+ {[%clk 0:02:05]}  Kf8 {[%clk 0:01:06]} 26. Qf6 {[%clk 0:01:58]}  Rh7 {[%clk 0:01:05]} 27. Bxc8 {[%clk 0:01:56]}  Bxc8 {[%clk 0:01:05]} 28. Qh4 {[%clk 0:01:51]}  Rh8 {[%clk 0:01:01]} 29. Kh1 {[%clk 0:01:43]}  Qe7 {[%clk 0:01:00]} 30. Qf2 {[%clk 0:00:50]}  Qg5 {[%clk 0:00:57]} 31. g4 {[%clk 0:00:50]}  fxg4 {[%clk 0:00:35]} 32. fxg4 {[%clk 0:00:51]}  Qxg4 {[%clk 0:00:36]} 33. Nf6 {[%clk 0:00:42]}  Qf5 {[%clk 0:00:35]} 34. Rf1 {[%clk 0:00:23]}  Qxf2 {[%clk 0:00:32]} 35. Rxf2 {[%clk 0:00:24]}  Ke7 {[%clk 0:00:31]} 36. Rg1 {[%clk 0:00:24]}  e5 {[%clk 0:00:19]} 37. Rg8 {[%clk 0:00:22]}  Rxg8 {[%clk 0:00:16]} 38. Nxg8+ {[%clk 0:00:23]}  Kf8 {[%clk 0:00:06]} 39. Nxh6 {[%clk 0:00:23]}  Be6 {[%clk 0:00:06]} 40. dxe5 {[%clk 0:00:22]}  Nxe5 {[%clk 0:00:06]} 41. Nf5 {[%clk 0:00:22]}  Nd3 {[%clk 0:00:05]} 42. Rf3 {[%clk 0:00:18]}  Ne5 {[%clk 0:00:04]} 43. Rf1 {[%clk 0:00:18]}  d4 {[%clk 0:00:05]} 44. cxd4 {[%clk 0:00:16]}  Bc4 {[%clk 0:00:03]} 45. Rc1 {[%clk 0:00:14]}  Bd5+ {[%clk 0:00:03]} 46. Kg1 {[%clk 0:00:14]}  Nc6 {[%clk 0:00:02]} 47. Ne3 {[%clk 0:00:13]}  Be4 {[%clk 0:00:03]} 48. d5 {[%clk 0:00:13]}  Ne5 {[%clk 0:00:03]} 49. a3 {[%clk 0:00:13]}  Ke7 {[%clk 0:00:03]} 50. Rc7+ {[%clk 0:00:12]}  Kd6 {[%clk 0:00:03]} 51. Rxa7 {[%clk 0:00:13]}  f5 {[%clk 0:00:04]} 52. h4 {[%clk 0:00:11]}  f4 {[%clk 0:00:04]} 53. Ng2 {[%clk 0:00:09]}  Nd3 {[%clk 0:00:04]} 54. Nxf4 {[%clk 0:00:05]}  Nxf4 {[%clk 0:00:03]} 55. Rf7 {[%clk 0:00:02]}  Nxd5 {[%clk 0:00:02]} 56. h5 {[%clk 0:00:02]}  Ke6 {[%clk 0:00:03]} 57. Rg7 {[%clk 0:00:02]}  Nf6 {[%clk 0:00:03]} 58. h6 {[%clk 0:00:02]}  b5 {[%clk 0:00:02]} 59. Rg5 {[%clk 0:00:02]}  Bh7 {[%clk 0:00:03]} 60. Kf2 {[%clk 0:00:02]}  Ne4+ {[%clk 0:00:02]} 61. Ke3 {[%clk 0:00:03]}  Nxg5 {[%clk 0:00:03]} 62. Kd4 {[%clk 0:00:04]}  Nf7 {[%clk 0:00:04]} 63. Kc5 {[%clk 0:00:04]}  Nxh6 {[%clk 0:00:04]} 64. Kxb5 {[%clk 0:00:05]}  Be4 {[%clk 0:00:05]} 65. Kb6 {[%clk 0:00:06]}  Kd7 {[%clk 0:00:05]} 66. a4 {[%clk 0:00:06]}  Kc8 {[%clk 0:00:06]} 67. a5 {[%clk 0:00:07]}  Nf7 {[%clk 0:00:05]} 68. a6 {[%clk 0:00:07]}  Nd8 {[%clk 0:00:06]} 69. a7 {[%clk 0:00:08]}  Ba8 {[%clk 0:00:06]} 70. Ka6 {[%clk 0:00:08]}  Kc7 {[%clk 0:00:07]} 71. Ka5 {[%clk 0:00:08]}  Kb7 {[%clk 0:00:08]} 72. Kb5 {[%clk 0:00:09]}  Kxa7 {[%clk 0:00:09]} 0-1


[Site "https://www.chess.com"]

[Event "Titled Tuesday Blitz March 08 Late 2022"]
[White "Keymer, Vincent"]
[Black "Kamsky, Gata"]
[WhiteFideId "12940690"]
[BlackFideId "2000024"]
[WhiteElo "2557"]
[BlackElo "2645"]
[Result "1/2-1/2"]
[Round "10"]
[TimeControl "180+1"]
[Date "2022.03.08"]
[WhiteClock "0:00:02"]
[BlackClock "0:00:31"]

1. d4 {[%clk 0:03:00]}  d5 {[%clk 0:02:59]} 2. c4 {[%clk 0:03:01]}  dxc4 {[%clk 0:02:59]} 3. Nf3 {[%clk 0:03:00]}  Nf6 {[%clk 0:02:59]} 4. e3 {[%clk 0:03:00]}  e6 {[%clk 0:02:57]} 5. Bxc4 {[%clk 0:03:00]}  a6 {[%clk 0:02:58]} 6. O-O {[%clk 0:02:59]}  c5 {[%clk 0:02:57]} 7. Be2 {[%clk 0:02:45]}  Nc6 {[%clk 0:02:53]} 8. Ne5 {[%clk 0:02:41]}  cxd4 {[%clk 0:02:45]} 9. Nxc6 {[%clk 0:02:39]}  bxc6 {[%clk 0:02:45]} 10. exd4 {[%clk 0:02:39]}  c5 {[%clk 0:02:39]} 11. dxc5 {[%clk 0:02:26]}  Qxd1 {[%clk 0:02:37]} 12. Rxd1 {[%clk 0:02:26]}  Bxc5 {[%clk 0:02:36]} 13. Nc3 {[%clk 0:02:21]}  Bb7 {[%clk 0:02:34]} 14. Na4 {[%clk 0:02:19]}  Ba7 {[%clk 0:02:33]} 15. Be3 {[%clk 0:02:09]}  Bxe3 {[%clk 0:02:32]} 16. fxe3 {[%clk 0:02:10]}  a5 {[%clk 0:02:24]} 17. Bb5+ {[%clk 0:01:46]}  Ke7 {[%clk 0:02:23]} 18. Rac1 {[%clk 0:01:46]}  Rac8 {[%clk 0:02:18]} 19. Nb6 {[%clk 0:01:45]}  Rxc1 {[%clk 0:02:16]} 20. Rxc1 {[%clk 0:01:46]}  Rb8 {[%clk 0:02:04]} 21. Rc7+ {[%clk 0:01:32]}  Kf8 {[%clk 0:01:56]} 22. a4 {[%clk 0:01:10]}  Nd5 {[%clk 0:01:49]} 23. Nxd5 {[%clk 0:00:58]}  Bxd5 {[%clk 0:01:48]} 24. Kf2 {[%clk 0:00:53]}  Rb7 {[%clk 0:01:45]} 25. Rc8+ {[%clk 0:00:40]}  Ke7 {[%clk 0:01:45]} 26. g3 {[%clk 0:00:40]}  f5 {[%clk 0:01:43]} 27. Ke2 {[%clk 0:00:31]}  g5 {[%clk 0:01:41]} 28. Kd3 {[%clk 0:00:29]}  Kd6 {[%clk 0:01:06]} 29. Kc3 {[%clk 0:00:14]}  Ke5 {[%clk 0:00:57]} 30. b4 {[%clk 0:00:12]}  axb4+ {[%clk 0:00:56]} 31. Kxb4 {[%clk 0:00:13]}  Ke4 {[%clk 0:00:56]} 32. Rc3 {[%clk 0:00:13]}  f4 {[%clk 0:00:51]} 33. exf4 {[%clk 0:00:12]}  gxf4 {[%clk 0:00:51]} 34. gxf4 {[%clk 0:00:13]}  Kxf4 {[%clk 0:00:51]} 35. a5 {[%clk 0:00:14]}  e5 {[%clk 0:00:48]} 36. a6 {[%clk 0:00:13]}  Rg7 {[%clk 0:00:47]} 37. Rc5 {[%clk 0:00:09]}  Bh1 {[%clk 0:00:39]} 38. Ka5 {[%clk 0:00:08]}  e4 {[%clk 0:00:38]} 39. Bc6 {[%clk 0:00:07]}  Bg2 {[%clk 0:00:34]} 40. Kb6 {[%clk 0:00:05]}  e3 {[%clk 0:00:32]} 41. Bxg2 {[%clk 0:00:04]}  Rxg2 {[%clk 0:00:31]} 42. a7 {[%clk 0:00:04]}  Ra2 {[%clk 0:00:31]} 43. Ra5 {[%clk 0:00:01]}  Rxa5 {[%clk 0:00:31]} 44. Kxa5 {[%clk 0:00:02]}  e2 {[%clk 0:00:31]} 45. a8=Q {[%clk 0:00:02]}  e1=Q+ {[%clk 0:00:31]} 46. Kb5 {[%clk 0:00:02]}  Qe5+ {[%clk 0:00:31]} 47. Kb4 {[%clk 0:00:01]}  Qe4+ {[%clk 0:00:31]} 48. Qxe4+ {[%clk 0:00:01]}  Kxe4 {[%clk 0:00:31]} 49. Kc3 {[%clk 0:00:02]} 1/2-1/2


[Site "https://www.chess.com"]

[Event "Titled Tuesday Blitz March 08 Late 2022"]
[White "Koutlas, Nikolaos"]
[Black "Jobava, Baadur"]
[WhiteFideId "25827138"]
[BlackFideId "13601520"]
[WhiteElo "1610"]
[BlackElo "2617"]
[Result "0-1"]
[Round "10"]
[TimeControl "180+1"]
[Date "2022.03.08"]
[WhiteClock "0:00:01"]
[BlackClock "0:01:17"]

1. e4 {[%clk 0:03:00]}  d5 {[%clk 0:02:56]} 2. exd5 {[%clk 0:03:00]}  Nf6 {[%clk 0:02:57]} 3. Nc3 {[%clk 0:03:01]}  c6 {[%clk 0:02:57]} 4. dxc6 {[%clk 0:02:58]}  Nxc6 {[%clk 0:02:58]} 5. Nf3 {[%clk 0:02:58]}  e5 {[%clk 0:02:58]} 6. Bb5 {[%clk 0:02:49]}  Bd6 {[%clk 0:02:57]} 7. O-O {[%clk 0:02:48]}  O-O {[%clk 0:02:57]} 8. d3 {[%clk 0:02:47]}  Bg4 {[%clk 0:02:55]} 9. h3 {[%clk 0:02:46]}  Bh5 {[%clk 0:02:53]} 10. Bxc6 {[%clk 0:02:42]}  bxc6 {[%clk 0:02:54]} 11. Ne4 {[%clk 0:02:39]}  h6 {[%clk 0:02:45]} 12. Ng3 {[%clk 0:02:03]}  Bg6 {[%clk 0:02:44]} 13. Nh4 {[%clk 0:02:03]}  Bh7 {[%clk 0:02:45]} 14. Nhf5 {[%clk 0:01:54]}  Re8 {[%clk 0:02:42]} 15. Qf3 {[%clk 0:01:51]}  Bf8 {[%clk 0:02:41]} 16. Bd2 {[%clk 0:01:45]}  Re6 {[%clk 0:02:37]} 17. Rfe1 {[%clk 0:01:40]}  Qd5 {[%clk 0:02:32]} 18. Qe2 {[%clk 0:01:19]}  e4 {[%clk 0:02:23]} 19. dxe4 {[%clk 0:00:17]}  Nxe4 {[%clk 0:02:22]} 20. Nxe4 {[%clk 0:00:17]}  Bxf5 {[%clk 0:02:22]} 21. f3 {[%clk 0:00:16]}  Rae8 {[%clk 0:02:22]} 22. Qd3 {[%clk 0:00:15]}  Rd8 {[%clk 0:01:48]} 23. Qxd5 {[%clk 0:00:11]}  cxd5 {[%clk 0:01:48]} 24. Nc3 {[%clk 0:00:07]}  Bxc2 {[%clk 0:01:48]} 25. Rxe6 {[%clk 0:00:06]}  fxe6 {[%clk 0:01:49]} 26. Ne2 {[%clk 0:00:06]}  e5 {[%clk 0:01:47]} 27. Rc1 {[%clk 0:00:03]}  Bd3 {[%clk 0:01:47]} 28. Nc3 {[%clk 0:00:03]}  Kf7 {[%clk 0:01:44]} 29. Kf2 {[%clk 0:00:03]}  Ke6 {[%clk 0:01:45]} 30. Ne2 {[%clk 0:00:02]}  Kd7 {[%clk 0:01:38]} 31. f4 {[%clk 0:00:02]}  e4 {[%clk 0:01:35]} 32. Nd4 {[%clk 0:00:03]}  Rb8 {[%clk 0:01:19]} 33. b3 {[%clk 0:00:03]}  Rb6 {[%clk 0:01:19]} 34. Be3 {[%clk 0:00:02]}  Ba3 {[%clk 0:01:18]} 35. Rc3 {[%clk 0:00:01]}  Bb4 {[%clk 0:01:18]} 36. Rc1 {[%clk 0:00:01]}  Ra6 {[%clk 0:01:18]} 37. a4 {[%clk 0:00:01]}  Ba3 {[%clk 0:01:17]} 0-1


[Site "https://www.chess.com"]

[Event "Titled Tuesday Blitz March 08 Late 2022"]
[White "Kushko, Dmitriy"]
[Black "Dilmukhametov, Artur"]
[WhiteFideId "14162261"]
[BlackFideId "24179922"]
[WhiteElo "2225"]
[BlackElo "2237"]
[Result "1-0"]
[Round "10"]
[TimeControl "180+1"]
[Date "2022.03.08"]
[WhiteClock "0:01:22"]
[BlackClock "0:00:13"]

1. Nf3 {[%clk 0:03:00]}  c5 {[%clk 0:02:51]} 2. g3 {[%clk 0:03:00]}  Nc6 {[%clk 0:02:46]} 3. Bg2 {[%clk 0:03:00]}  g6 {[%clk 0:02:45]} 4. c4 {[%clk 0:02:59]}  Bg7 {[%clk 0:02:44]} 5. Nc3 {[%clk 0:03:00]}  e6 {[%clk 0:02:43]} 6. O-O {[%clk 0:03:00]}  Nge7 {[%clk 0:02:42]} 7. a3 {[%clk 0:03:00]}  O-O {[%clk 0:02:40]} 8. b4 {[%clk 0:03:00]}  cxb4 {[%clk 0:02:34]} 9. axb4 {[%clk 0:03:01]}  Nxb4 {[%clk 0:02:22]} 10. Ba3 {[%clk 0:03:00]}  Nec6 {[%clk 0:02:19]} 11. d4 {[%clk 0:02:48]}  d5 {[%clk 0:02:14]} 12. e3 {[%clk 0:02:44]}  dxc4 {[%clk 0:02:00]} 13. Nd2 {[%clk 0:02:44]}  Re8 {[%clk 0:01:22]} 14. Nxc4 {[%clk 0:02:41]}  a5 {[%clk 0:00:56]} 15. Bxc6 {[%clk 0:02:31]}  Nxc6 {[%clk 0:00:50]} 16. Nd6 {[%clk 0:02:31]}  Re7 {[%clk 0:00:34]} 17. Nxc8 {[%clk 0:02:31]}  Qxc8 {[%clk 0:00:35]} 18. Bxe7 {[%clk 0:02:30]}  Nxe7 {[%clk 0:00:36]} 19. Qb3 {[%clk 0:02:25]}  e5 {[%clk 0:00:27]} 20. d5 {[%clk 0:02:06]}  e4 {[%clk 0:00:23]} 21. Rac1 {[%clk 0:02:01]}  Qd7 {[%clk 0:00:17]} 22. Rfd1 {[%clk 0:01:53]}  Re8 {[%clk 0:00:16]} 23. Nxe4 {[%clk 0:01:49]}  a4 {[%clk 0:00:16]} 24. Qa2 {[%clk 0:01:47]}  b5 {[%clk 0:00:15]} 25. d6 {[%clk 0:01:46]}  Nf5 {[%clk 0:00:15]} 26. Nc5 {[%clk 0:01:46]}  Qa7 {[%clk 0:00:16]} 27. d7 {[%clk 0:01:36]}  Rd8 {[%clk 0:00:16]} 28. Qd5 {[%clk 0:01:32]}  Bf8 {[%clk 0:00:16]} 29. Nb7 {[%clk 0:01:32]}  Ne7 {[%clk 0:00:13]} 30. Qxb5 {[%clk 0:01:22]} 1-0


[Site "https://www.chess.com"]

[Event "Titled Tuesday Blitz March 08 Late 2022"]
[White "Maltsevskaya, Aleksandra"]
[Black "Dardha, Daniel"]
[WhiteFideId "24174041"]
[BlackFideId "240990"]
[WhiteElo "2241"]
[BlackElo "2482"]
[Result "0-1"]
[Round "10"]
[TimeControl "180+1"]
[Date "2022.03.08"]
[WhiteClock "0:00:04"]
[BlackClock "0:01:21"]

1. Nf3 {[%clk 0:02:55]}  d5 {[%clk 0:02:59]} 2. g3 {[%clk 0:02:56]}  g6 {[%clk 0:02:59]} 3. d3 {[%clk 0:02:57]}  Bg7 {[%clk 0:02:58]} 4. Nbd2 {[%clk 0:02:57]}  e5 {[%clk 0:02:58]} 5. Bg2 {[%clk 0:02:57]}  Ne7 {[%clk 0:02:58]} 6. e4 {[%clk 0:02:58]}  O-O {[%clk 0:02:58]} 7. O-O {[%clk 0:02:58]}  Nbc6 {[%clk 0:02:57]} 8. Re1 {[%clk 0:02:57]}  h6 {[%clk 0:02:57]} 9. exd5 {[%clk 0:02:57]}  Nxd5 {[%clk 0:02:58]} 10. Nc4 {[%clk 0:02:58]}  Re8 {[%clk 0:02:58]} 11. a4 {[%clk 0:02:57]}  Nb6 {[%clk 0:02:58]} 12. Ne3 {[%clk 0:02:50]}  a5 {[%clk 0:02:56]} 13. h3 {[%clk 0:02:49]}  Be6 {[%clk 0:02:56]} 14. Ng4 {[%clk 0:02:48]}  g5 {[%clk 0:02:48]} 15. Ngxe5 {[%clk 0:02:48]}  Nxe5 {[%clk 0:02:49]} 16. Nxe5 {[%clk 0:02:48]}  Bd5 {[%clk 0:02:49]} 17. Nf3 {[%clk 0:02:01]}  Qd7 {[%clk 0:02:47]} 18. c3 {[%clk 0:01:53]}  Rxe1+ {[%clk 0:02:45]} 19. Nxe1 {[%clk 0:01:48]}  Re8 {[%clk 0:02:46]} 20. d4 {[%clk 0:01:19]}  Bxg2 {[%clk 0:02:44]} 21. Kxg2 {[%clk 0:01:20]}  Qd5+ {[%clk 0:02:40]} 22. Nf3 {[%clk 0:01:20]}  f5 {[%clk 0:02:35]} 23. Kg1 {[%clk 0:01:12]}  g4 {[%clk 0:02:32]} 24. hxg4 {[%clk 0:01:10]}  fxg4 {[%clk 0:02:33]} 25. Nh4 {[%clk 0:01:07]}  h5 {[%clk 0:02:33]} 26. Bf4 {[%clk 0:01:05]}  c6 {[%clk 0:02:27]} 27. Qd3 {[%clk 0:01:04]}  Qe4 {[%clk 0:02:21]} 28. Qxe4 {[%clk 0:00:58]}  Rxe4 {[%clk 0:02:22]} 29. Nf5 {[%clk 0:00:56]}  Re2 {[%clk 0:02:18]} 30. Rb1 {[%clk 0:00:48]}  Nxa4 {[%clk 0:02:12]} 31. Ra1 {[%clk 0:00:45]}  Nxb2 {[%clk 0:02:12]} 32. Rxa5 {[%clk 0:00:45]}  Nc4 {[%clk 0:02:13]} 33. Ra8+ {[%clk 0:00:43]}  Kh7 {[%clk 0:02:11]} 34. Rb8 {[%clk 0:00:33]}  Rb2 {[%clk 0:02:08]} 35. Rc8 {[%clk 0:00:33]}  Bf6 {[%clk 0:02:07]} 36. Rf8 {[%clk 0:00:05]}  Kg6 {[%clk 0:02:05]} 37. Ne3 {[%clk 0:00:04]}  Nd2 {[%clk 0:02:04]} 38. Kg2 {[%clk 0:00:03]}  Nf3 {[%clk 0:02:02]} 39. Nf1 {[%clk 0:00:03]}  h4 {[%clk 0:01:57]} 40. gxh4 {[%clk 0:00:03]}  Bxh4 {[%clk 0:01:54]} 41. Bg3 {[%clk 0:00:03]}  Bg5 {[%clk 0:01:51]} 42. Rg8+ {[%clk 0:00:04]}  Kf5 {[%clk 0:01:50]} 43. Rf8+ {[%clk 0:00:04]}  Ke4 {[%clk 0:01:51]} 44. Re8+ {[%clk 0:00:02]}  Kd3 {[%clk 0:01:51]} 45. d5 {[%clk 0:00:02]}  cxd5 {[%clk 0:01:51]} 46. Ne3 {[%clk 0:00:02]}  Bxe3 {[%clk 0:01:49]} 47. Rxe3+ {[%clk 0:00:01]}  Kc4 {[%clk 0:01:50]} 48. Re7 {[%clk 0:00:02]}  Rb1 {[%clk 0:01:49]} 49. Rc7+ {[%clk 0:00:02]}  Kd3 {[%clk 0:01:49]} 50. Bh2 {[%clk 0:00:03]}  Nxh2 {[%clk 0:01:45]} 51. Kxh2 {[%clk 0:00:03]}  b6 {[%clk 0:01:27]} 52. Kg3 {[%clk 0:00:03]}  Rg1+ {[%clk 0:01:27]} 53. Kh2 {[%clk 0:00:03]}  Re1 {[%clk 0:01:28]} 54. Kg3 {[%clk 0:00:04]}  Re4 {[%clk 0:01:28]} 55. Rc6 {[%clk 0:00:03]}  Rc4 {[%clk 0:01:24]} 56. Rxb6 {[%clk 0:00:03]}  Kxc3 {[%clk 0:01:23]} 57. Rd6 {[%clk 0:00:04]}  Rd4 {[%clk 0:01:22]} 58. Rg6 {[%clk 0:00:02]}  Re4 {[%clk 0:01:21]} 59. Rd6 {[%clk 0:00:02]}  d4 {[%clk 0:01:21]} 60. f3 {[%clk 0:00:02]}  gxf3 {[%clk 0:01:21]} 61. Kxf3 {[%clk 0:00:03]}  Re3+ {[%clk 0:01:21]} 62. Kf2 {[%clk 0:00:03]}  Re8 {[%clk 0:01:22]} 63. Rc6+ {[%clk 0:00:04]}  Kd2 {[%clk 0:01:22]} 64. Rc4 {[%clk 0:00:03]}  d3 {[%clk 0:01:22]} 65. Rc7 {[%clk 0:00:04]}  Kd1 {[%clk 0:01:22]} 66. Kf3 {[%clk 0:00:04]}  d2 {[%clk 0:01:22]} 67. Rd7 {[%clk 0:00:04]}  Ke1 {[%clk 0:01:21]} 0-1


[Site "https://www.chess.com"]

[Event "Titled Tuesday Blitz March 08 Late 2022"]
[White "Mangialardo, Tiago Carvalho"]
[Black "Vargas Pereda, Jesus Manue"]
[WhiteFideId "2130718"]
[BlackFideId "5115710"]
[WhiteElo "2080"]
[BlackElo "1786"]
[Result "1/2-1/2"]
[Round "10"]
[TimeControl "180+1"]
[Date "2022.03.09"]
[WhiteClock "0:00:04"]
[BlackClock "0:00:08"]

1. e4 {[%clk 0:02:57]}  c5 {[%clk 0:02:58]} 2. Nf3 {[%clk 0:02:57]}  a6 {[%clk 0:02:58]} 3. d4 {[%clk 0:02:58]}  cxd4 {[%clk 0:02:58]} 4. Nxd4 {[%clk 0:02:58]}  Nf6 {[%clk 0:02:59]} 5. Nc3 {[%clk 0:02:59]}  e5 {[%clk 0:02:59]} 6. Nf3 {[%clk 0:02:56]}  Nc6 {[%clk 0:02:55]} 7. Be3 {[%clk 0:02:55]}  Bb4 {[%clk 0:02:55]} 8. Bd3 {[%clk 0:02:48]}  O-O {[%clk 0:02:53]} 9. O-O {[%clk 0:02:47]}  Bxc3 {[%clk 0:02:53]} 10. bxc3 {[%clk 0:02:47]}  d5 {[%clk 0:02:53]} 11. exd5 {[%clk 0:02:34]}  Nxd5 {[%clk 0:02:53]} 12. Bd2 {[%clk 0:02:18]}  Be6 {[%clk 0:02:51]} 13. Re1 {[%clk 0:02:14]}  Qc7 {[%clk 0:02:50]} 14. Qe2 {[%clk 0:01:59]}  Bg4 {[%clk 0:02:45]} 15. Qe4 {[%clk 0:01:56]}  Nf6 {[%clk 0:02:42]} 16. Qe2 {[%clk 0:01:44]}  Rfe8 {[%clk 0:02:36]} 17. h3 {[%clk 0:01:43]}  e4 {[%clk 0:02:23]} 18. hxg4 {[%clk 0:01:38]}  exd3 {[%clk 0:02:22]} 19. Qxd3 {[%clk 0:01:38]}  Nxg4 {[%clk 0:02:20]} 20. Qc4 {[%clk 0:01:15]}  Nf6 {[%clk 0:02:08]} 21. Bf4 {[%clk 0:01:08]}  Qa5 {[%clk 0:01:58]} 22. Qb3 {[%clk 0:00:46]}  Qf5 {[%clk 0:01:52]} 23. Qxb7 {[%clk 0:00:38]}  Qxf4 {[%clk 0:01:52]} 24. Qxc6 {[%clk 0:00:37]}  Rac8 {[%clk 0:01:46]} 25. Rxe8+ {[%clk 0:00:36]}  Rxe8 {[%clk 0:01:46]} 26. Qxa6 {[%clk 0:00:32]}  h6 {[%clk 0:01:42]} 27. Qd3 {[%clk 0:00:31]}  Qc7 {[%clk 0:01:15]} 28. a4 {[%clk 0:00:30]}  Rd8 {[%clk 0:01:15]} 29. Qe3 {[%clk 0:00:27]}  Re8 {[%clk 0:01:13]} 30. Qd4 {[%clk 0:00:26]}  Rd8 {[%clk 0:01:13]} 31. Qe5 {[%clk 0:00:23]}  Qa7 {[%clk 0:00:51]} 32. a5 {[%clk 0:00:20]}  Rd5 {[%clk 0:00:50]} 33. Qe3 {[%clk 0:00:18]}  Qa6 {[%clk 0:00:43]} 34. Qb6 {[%clk 0:00:17]}  Rd6 {[%clk 0:00:39]} 35. Qxa6 {[%clk 0:00:14]}  Rxa6 {[%clk 0:00:39]} 36. Nd4 {[%clk 0:00:11]}  Ne4 {[%clk 0:00:37]} 37. c4 {[%clk 0:00:10]}  Nc3 {[%clk 0:00:29]} 38. Kf1 {[%clk 0:00:09]}  Kf8 {[%clk 0:00:28]} 39. Ke1 {[%clk 0:00:09]}  Ke8 {[%clk 0:00:27]} 40. Kd2 {[%clk 0:00:09]}  Ne4+ {[%clk 0:00:27]} 41. Ke3 {[%clk 0:00:09]}  Nc5 {[%clk 0:00:25]} 42. Nb3 {[%clk 0:00:07]}  Ne6 {[%clk 0:00:22]} 43. Ke4 {[%clk 0:00:07]}  Kd7 {[%clk 0:00:22]} 44. Kd5 {[%clk 0:00:07]}  Nf4+ {[%clk 0:00:21]} 45. Kd4 {[%clk 0:00:06]}  Kd6 {[%clk 0:00:19]} 46. c5+ {[%clk 0:00:06]}  Kc6 {[%clk 0:00:20]} 47. g3 {[%clk 0:00:05]}  Ne6+ {[%clk 0:00:20]} 48. Kc4 {[%clk 0:00:06]}  f5 {[%clk 0:00:17]} 49. Nd4+ {[%clk 0:00:06]}  Nxd4 {[%clk 0:00:16]} 50. Kxd4 {[%clk 0:00:07]}  g5 {[%clk 0:00:16]} 51. c4 {[%clk 0:00:06]}  f4 {[%clk 0:00:15]} 52. gxf4 {[%clk 0:00:06]}  gxf4 {[%clk 0:00:15]} 53. Ra3 {[%clk 0:00:06]}  h5 {[%clk 0:00:14]} 54. Ra4 {[%clk 0:00:03]}  h4 {[%clk 0:00:13]} 55. Ra3 {[%clk 0:00:03]}  f3 {[%clk 0:00:13]} 56. Rxf3 {[%clk 0:00:03]}  Rxa5 {[%clk 0:00:13]} 57. Rf6+ {[%clk 0:00:03]}  Kc7 {[%clk 0:00:13]} 58. Rh6 {[%clk 0:00:02]}  Ra2 {[%clk 0:00:13]} 59. Rxh4 {[%clk 0:00:01]}  Rxf2 {[%clk 0:00:13]} 60. Rh7+ {[%clk 0:00:02]}  Kc6 {[%clk 0:00:13]} 61. Rh6+ {[%clk 0:00:03]}  Kc7 {[%clk 0:00:13]} 62. Rh4 {[%clk 0:00:02]}  Rf1 {[%clk 0:00:12]} 63. Kd5 {[%clk 0:00:02]}  Rd1+ {[%clk 0:00:12]} 64. Rd4 {[%clk 0:00:02]}  Re1 {[%clk 0:00:12]} 65. Re4 {[%clk 0:00:01]}  Rd1+ {[%clk 0:00:12]} 66. Ke5 {[%clk 0:00:02]}  Rc1 {[%clk 0:00:12]} 67. Rd4 {[%clk 0:00:02]}  Re1+ {[%clk 0:00:12]} 68. Kd5 {[%clk 0:00:03]}  Rh1 {[%clk 0:00:11]} 69. Re4 {[%clk 0:00:02]}  Rd1+ {[%clk 0:00:11]} 70. Rd4 {[%clk 0:00:02]}  Rh1 {[%clk 0:00:11]} 71. Re4 {[%clk 0:00:03]}  Rh5+ {[%clk 0:00:11]} 72. Re5 {[%clk 0:00:03]}  Rh4 {[%clk 0:00:11]} 73. c6 {[%clk 0:00:03]}  Rh7 {[%clk 0:00:09]} 74. c5 {[%clk 0:00:02]}  Rh1 {[%clk 0:00:08]} 75. Re4 {[%clk 0:00:02]}  Rd1+ {[%clk 0:00:08]} 76. Rd4 {[%clk 0:00:02]}  Re1 {[%clk 0:00:08]} 77. Kc4 {[%clk 0:00:02]}  Rc1+ {[%clk 0:00:08]} 78. Kd5 {[%clk 0:00:03]}  Re1 {[%clk 0:00:08]} 79. Rg4 {[%clk 0:00:03]}  Rd1+ {[%clk 0:00:08]} 80. Rd4 {[%clk 0:00:04]}  Re1 {[%clk 0:00:08]} 1/2-1/2


[Site "https://www.chess.com"]